Workbook

Sheet 利用方法
A1: 一般請求書・納品書書式の利用方法
B3: １．様式について
C5: この請求書は物品の納品・機械資材等のリース他、外注費（労務外注費含む）以外の請求をする
C6: ときに使用して下さい。
B8: ２．様式の構成について
C10: 当請求書は、「表紙入力シート」が合計請求書、「明細書入力シート」が請求明細書となっています。
B12: ３．記入方法について
C14: この請求書はマクロを使用しています。マクロを有効にしてお使い下さい。
C16: 作成の際は、弊社ホームページより最新版をダウンロードして作成して下さい。
C18: 別紙「記入例」を参考にして作成して下さい。
B20: ★請求書
C22: 請求年月日、住所氏名、電話番号、振込指定口座を必ず入力して下さい。
C24: 前月繰越がある場合は前月繰越額欄に、値引きがある場合は当月値引額欄にそれぞれ入力
C25: して下さい。
C27: 提出用請求書には、出力後必ず請求書印を押印して下さい。
C29: 連絡事項等がある場合は備考欄に入力して下さい。
C31: 請求先部門欄は、該当部門のセルのドロップダウンリストから選択して下さい。
C33: 登録番号欄に適格請求書発行事業者番号を入力して下さい。
C35: 契約書・注文書等をとり交わしている場合は、支払比率を必ず入力して下さい。
C37: 値引きがある場合は値引計に総額を入力すると、各税区分の割合に応じた値引き額が自動計算
C38: されます。尚、自動計算結果に修正が必要な場合は上書き入力できます。
B40: ★請求内訳書
C42: 納品年月日、工事名を必ず記入して下さい。また、工事コードがわかる場合はコードも入力して
C43: 下さい。
C45: 請求内訳書は、各現場毎にそれぞれ作成してください。
C47: 納入部門欄は、該当部門のセルのドロップダウンリストから選択して下さい。
C49: 納品の内容を品名寸法欄に入力して下さい。
C51: 納品数量を数量欄に、単価を単価欄に入力して下さい。
C53: 金額(税抜)欄は自動計算項目ですが、数量または単価を記入しない場合、端数処理を変更
C54: したい場合は上書き入力して下さい。
C56: 請求内訳書が複数枚にわたる場合や、複数の現場に納品がある場合には、[ページ追加]ボタ
C57: ンにてページを追加して下さい。
C59: 現場の担当者名を弊社担当者欄に必ず入力して下さい。
C61: 特記事項等ある場合は備考欄に記入して下さい。
C63: ページ削除ボタンを押すと、２ページ目の請求内訳書が削除されます。
B65: ４．提出について
C67: 当請求書の提出部数は１部です。
C69: 弊社担当者が貴社専用請求書（納品書）にサインをしている場合、当請求書にて提出する場合
C70: であっても、貴社専用請求書も添付のうえ提出して下さい。
C72: 不明な点がございましたら、経理担当（樋口・中俣）まで連絡下さい。

Sheet 表紙記入例
F2: 請求年月日 | H2: 2023-10-31
B3: 請 求 書 （内税）
B5: 株式会社 森 下 組 御中
F6: 請求部門 | H6: ① 土木 | I6: 2 建築 | J6: 3 機材 | K6: 4 総務営業 | L6: ⑤ 東京
F7: 業者コード
F8: 登録番号 | H8: T0123456789123
B9: 請求金額 | D9: =D26 -> 17316 | F9: 住所･社名･電話
F10: 新潟県湯沢町大字湯沢***-*
B11: 前月繰越額 | F11: 株式会社 ○○○商店 | M11: ㊞
B12: 10％対象 | D12: =IF(ISERROR(D17-D14-D16)=TRUE,"",D17-D14-D16) -> 10000 | F12: 代表取締役 ○○○○ | J12: 012（345）6789
B13: 内消費税 | D13: =IF(ISERROR(ROUND(D12*10/110,0))=TRUE,"",ROUND(D12*10/110,0)) -> 909
B14: 8％対象 | D14: =IF(SUMIF(明細書記入例!G:G,"8%",明細書記入例!F:F)+SUMIF(明細書記入例!G:G,"軽8%",明細書記入例!F:F)=0,"",SUMIF(明細書記入例!G:G,"8%",明細書記入例!F:F)+SUMIF(明細書記入例!G:G,"軽8%",明細書記入例!F:F)) -> 5500 | F14: 取引銀行 | H14: 〇〇 | J14: 銀行 | K14: 〇〇 | M14: 支店
B15: 内消費税 | D15: =IF(ISERROR(ROUND(D14*8/108,0))=TRUE,"",ROUND(D14*8/108,0)) -> 407 | F15: 口座名 | H15: カ.〇〇〇シヨウテン
B16: 非・不課税 | D16: =IF(SUMIF(明細書記入例!G:G,"非・不課税",明細書記入例!F:F)=0,"",SUMIF(明細書記入例!G:G,"非・不課税",明細書記入例!F:F)) -> 900 | F16: 口座番号 | H16: 当座 | J16: № | K16: 0123456
B17: 当月税込計 | D17: =SUBTOTAL(9,明細書記入例!F:F) -> 16400
B18: 当月内税計 | D18: =SUM(D13,D15) -> 1316 | F18: 備考 | K18: 支払方法
B19: 当月請求合計額 | D19: =SUM(D17:D18) -> 17716 | K19: 現金 | L19: 30 | M19: ％
B20: 当月値引額(10%) | D20: =IF(D25="","",D25-D22-D24) -> 244 | K20: でんさい | L20: 70 | M20: ％
B21: 内消費税 | D21: =IF(D20="","",ROUND(D20*10/110,0)) -> 22
B22: 当月値引額(8%) | D22: =IF(D25="","",ROUND(D25*D14/D17,0)) -> 134 | F22: 社長印 | G22: 総務検印 | H22: 総務検印 | K22: 請求書受付印
B23: 内消費税 | D23: =IF(D22="","",ROUND(D22*8/108,0)) -> 10
B24: 当月値引額(非･不) | D24: =IF(D25="","",ROUND(D25*D16/D17,0)) -> 22
B25: 値引計 | D25: 400
B26: 差引今回請求額 | D26: =IF(ISERROR(D11+D19-D25)=TRUE,IF(D11+D25=0,"",D11-D25),D11+D19-D25) -> 17316 | F26: 所属長印 | G26: 経理担当 | H26: 内容ﾁｪｯｸ | I26: 検 算
D27: ※端数調整して下さい | K27: 未払分類
B28: 支払決済金額 | C28: 上記請求金額
C29: 支払時値引額
C30: 相殺・保留額
C31: 差引支払決済額
C32: 留意事項

Sheet 表紙入力シート
F2: 請求年月日
B3: 請 求 書 （内税）
B5: 株式会社 森 下 組 御中
F6: 請求部門 | H6: 1 土木 | I6: 2 建築 | J6: 3 機材 | K6: 4 総務営業 | L6: 5 東京
F7: 業者コード
F8: 登録番号
B9: 請求金額 | D9: =D26 -> 0 | F9: 住所･社名･電話
B11: 前月繰越額 | M11: ㊞
B12: 10％対象 | D12: =IF(ISERROR(D17-D14-D16)=TRUE,"",D17-D14-D16) -> 0 | J12: （ ）
B13: 内消費税 | D13: =IF(ISERROR(ROUND(D12*10/110,0))=TRUE,"",ROUND(D12*10/110,0)) -> 0
B14: 8％対象 | D14: =IF(SUMIF(明細書入力シート!G:G,"8%",明細書入力シート!F:F)+SUMIF(明細書入力シート!G:G,"軽8%",明細書入力シート!F:F)=0,0,SUMIF(明細書入力シート!G:G,"8%",明細書入力シート!F:F)+SUMIF(明細書入力シート!G:G,"軽8%",明細書入力シート!F:F)) -> 0 | F14: 取引銀行 | J14: 銀行 | M14: 支店
B15: 内消費税 | D15: =IF(ISERROR(ROUND(D14*8/108,0))=TRUE,"",ROUND(D14*8/108,0)) -> 0 | F15: 口座名
B16: 非・不課税 | D16: =IF(SUMIF(明細書入力シート!G:G,"非・不課税",明細書入力シート!F:F)=0,0,SUMIF(明細書入力シート!G:G,"非・不課税",明細書入力シート!F:F)) -> 0 | F16: 口座番号 | J16: №
B17: 当月税込計 | D17: =SUBTOTAL(9,明細書入力シート!F:F) -> 0
B18: 当月内税計 | D18: =SUM(D13,D15) -> 0 | F18: 備考 | K18: 支払方法
B19: 当月請求合計額 | D19: =D17 -> 0 | K19: 現金 | M19: ％
B20: 当月値引額(10%) | D20: =IF(D25="","",D25-D22-D24) ->  | K20: でんさい | M20: ％
B21: 内消費税 | D21: =IF(D25="","",ROUND(D20*10/110,0)) -> 
B22: 当月値引額(8%) | D22: =IF(D25="","",ROUND(D25*D14/D17,0)) ->  | F22: 社長印 | G22: 総務検印 | H22: 総務検印 | K22: 請求書受付印
B23: 内消費税 | D23: =IF(D22="","",ROUND(D22*8/108,0)) -> 
B24: 当月値引額(非･不) | D24: =IF(D25="","",ROUND(D25*D16/D17,0)) -> 
B25: 値引計
B26: 差引今回請求額 | D26: =IF(ISERROR(D11+D19-D25)=TRUE,IF(D11+D25=0,"",D11-D25),D11+D19-D25) -> 0 | F26: 所属長印 | G26: 経理担当 | H26: 内容ﾁｪｯｸ | I26: 検 算
D27: =IF(ISERROR(IF(D20+D22+D24=D25,"","※端数調整して下さい"))=TRUE,"",IF(D20+D22+D24=D25,"","※端数調整して下さい")) ->  | K27: 未払分類
B28: 支払決済金額 | C28: 上記請求金額
C29: 支払時値引額
C30: 相殺・保留額
C31: 差引支払決済額
C32: 留意事項

Sheet 明細書記入例
F1: 整理番号 | G1: 1
F2: 納入年月日 | G2: 2023-10-10
A3: 請 求 内 訳 書 （内税） | E3: 納入者名
E4: =IF(表紙記入例!$F$11="","",表紙記入例!$F$11) -> 株式会社 ○○○商店
A5: 請求部門 | B5: ① 土木
A6: 工事コード | B6: 1230001
A7: 工事件名 | B7: ○○○○○工事
A9: 科目コード | B9: 工種コード | C9: 品名寸法 | D9: 数量 | E9: 単価 | F9: 金額(税込) | G9: 税区分 | H9: 備考
C10: ○○○○○○ | D10: 1 | E10: 10000 | F10: =IF(ROUND(D10*E10,0)=0,"",ROUND(D10*E10,0)) -> 10000
C11: □□□□□□ | D11: 5 | E11: 500 | F11: =IF(ROUND(D11*E11,0)=0,"",ROUND(D11*E11,0)) -> 2500 | G11: 0.08
C12: △△△△△△ | D12: 2 | E12: 1500 | F12: 3000 | G12: 軽8%
C13: ◇◇◇◇◇◇ | D13: 3 | E13: 300 | F13: 900 | G13: 非・不課税
C33: 合 計 | F33: =IF(SUBTOTAL(9,F10:F32)=0,"",SUBTOTAL(9,F10:F32)) -> 16400
H34: 弊社担当者
A35: 納入方法 | B35: 店頭渡･配達 | C35: [お願い] ● 各部門単位にまとめ、それぞれに表紙を添付して下さい。 ● 毎月20日締切、25日各部門必着です。 ● 工事コード頭1･土木、2･建築､3･機材、5･東京支店です。 | E35: 備考
A36: 配達場所 | B36: 現場･倉庫･事務所

Sheet 明細書入力シート
F1: 整理番号
F2: 納入年月日
A3: 請 求 内 訳 書 （内税） | E3: 納入者名
A5: 請求部門
A6: 工事コード
A7: 工事件名
A9: 科目コード | B9: 工種コード | C9: 品名寸法 | D9: 数量 | E9: 単価 | F9: 金額(税込) | G9: 税区分 | H9: 備考
F10: =IF(ROUND(D10*E10,0)=0,"",ROUND(D10*E10,0)) -> 
F14: =IF(ROUND(D14*E14,0)=0,"",ROUND(D14*E14,0)) -> 
C33: 合 計 | F33: =IF(SUBTOTAL(9,F10:F32)=0,"",SUBTOTAL(9,F10:F32)) -> 
H34: 弊社担当者
A35: 納入方法 | B35: 店頭渡･配達 | C35: [お願い] ● 各部門単位にまとめ、それぞれに表紙を添付して下さい。 ● 毎月20日締切、25日各部門必着です。 ● 工事コード頭1･土木、2･建築､3･機材、5･東京支店です。 | E35: 備考
A36: 配達場所 | B36: 現場･倉庫･事務所
